[Event "Slovakian-ch Youth 2022"]
[Site "Lubovna"]
[Date "2022.05.25"]
[Round "6.8"]
[White "Bidulsky, Matej"]
[Black "Petrek, Dominik"]
[Result "1/2-1/2"]
[ECO "C01"]
[WhiteElo "1800"]
[BlackElo "2110"]
[Annotator "TA"]
[PlyCount "112"]
[EventDate "2022.05.22"]
[EventCountry "SVK"]
[SourceTitle "playchess.com"]
[Source "ChessBase"]
[SourceQuality "1"]
[TimeControl "40/5400+30:1800+30"]

{[%evp 9,112,0,11,0,32,8,21,0,0,0,0,0,0,0,0,-6,-13,-12,0,-4,-3,-18,-17,-63,-68,-63,-63,-89,-63,-79,-64,-79,-44,-48,-44,-50,-44,-58,-42,-43,-45,-50,-24,-24,-24,-25,-25,-25,-25,-31,-8,-8,-8,-31,-31,-48,-31,-36,-31,-35,-18,-18,-18,-59,-25,-25,-19,-53,0,0,0,-71,0,0,0,0,0,0,0,0,0,0,0,0,0,0,0,0,0,0,0,0,0,0,0,0,0,0,0,0,0,0,0,0,0]} 1. e4 {[%emt 0:01:46]} e6 {[%emt 0:00:16]} 2. d4 {[%emt 0:01:24]} d5 {[%emt 0:00:07]} 3. exd5 {[%emt 0:00:06]} exd5 {[%emt 0:00:16]} 4. Nc3 {[%emt 0:00:58]} c6 {[%emt 0:01:12]} 5. Bd3 {[%emt 0:00:28]} Bd6 {[%emt 0:00:14]} 6. Nf3 {[%emt 0:00:24] C01: French: Exchange Variation.} Qc7 {[%emt 0:06:24]} 7. Ne2 {[%emt 0:01:27]} Ne7 {[%emt 0:01:18]} 8. Be3 {[%emt 0:01:45]} Bf5 {[%emt 0:01:40]} 9. Ng3 {[%emt 0:01:07] [#]} Bxd3 $146 {[%emt 0:04:34]} ({Predecessor:} 9... Bg6 10. c3 Nd7 11. Qc2 O-O-O 12. O-O-O Rde8 13. Rde1 Kb8 14. Kb1 Rhf8 15. Nf5 Nxf5 16. Bxf5 {½-½ (41) Schum,P (1279)-Barrmeyer,K (1628) Borkum 2004}) 10. Qxd3 {[%emt 0:00:07]} Qa5+ {[%emt 0:00:31]} 11. c3 {[%emt 0:00:53]} Qa6 {[%emt 0:00:09]} 12. Qxa6 {[%emt 0:00:26]} Nxa6 {[%emt 0:00:10]} 13. Ne2 {[%emt 0:01:31]} Ng6 {[%emt 0:00:44]} 14. h4 {[%emt 0:00:24]} h5 {[%emt 0:00:30]} 15. Kd2 {[%emt 0:00:10]} Nc7 {[%emt 0:22:50]} 16. Ng3 {[%emt 0:00:19]} (16. Ne1 $11) 16... Bxg3 $15 {[%emt 0:02:47]} 17. fxg3 {[%emt 0:00:09]} f6 {[%emt 0:03:18]} 18. Ng1 {[%emt 0:01:21]} Kd7 {[%emt 0:02:29]} 19. Nh3 {[%emt 0:02:02]} Rae8 {[%emt 0:03:41]} 20. Nf4 {[%emt 0:00:15]} Nxf4 {[%emt 0:00:28]} 21. Bxf4 {[%emt 0:00:13]} Ne6 {[%emt 0:00:25]} 22. Rae1 {[%emt 0:00:12]} g6 {[%emt 0:04:38]} 23. Re2 {[%emt 0:01:20]} Rh7 {[%emt 0:01:21]} 24. Rhe1 {[%emt 0:00:35]} Rhe7 {[%emt 0:00:06]} 25. b3 {[%emt 0:00:09]} Ng7 {[%emt 0:00:42]} (25... a6 {keeps more tension.} 26. Kd3 Nd8 27. Bc1 Rxe2 28. Rxe2 Rxe2 29. Kxe2 Ke6) 26. Rxe7+ {[%emt 0:02:02]} Rxe7 {[%emt 0:01:44]} 27. Rxe7+ {[%emt 0:00:04]} Kxe7 $11 {[%emt 0:00:09][%mdl 4096] Endgame KB-KN} 28. Ke3 {[%emt 0:00:03]} Ke6 {[%emt 0:00:21]} 29. Bb8 {[%emt 0:00:21]} a6 {[%emt 0:00:22]} 30. Kf4 {[%emt 0:00:09]} Nf5 {[%emt 0:05:12]} 31. Bc7 {[%emt 0:04:00]} Nh6 {[%emt 0:01:25]} 32. Bb8 {[%emt 0:01:39]} Ng4 {[%emt 0:00:39]} 33. Bc7 {[%emt 0:00:29]} Kd7 {[%emt 0:01:45]} 34. Bb6 {[%emt 0:01:07]} Kc8 {[%emt 0:02:04]} 35. c4 {[%emt 0:02:10]} Kd7 {[%emt 0:00:50]} 36. a4 {[%emt 0:00:27]} Ke6 {[%emt 0:00:36]} 37. a5 {[%emt 0:00:37]} Nf2 {[%emt 0:01:39]} 38. Bd8 {[%emt 0:22:37]} Ne4 {[%emt 0:19:59]} (38... Nd3+ $15 39. Ke3 dxc4) 39. g4 {[%emt 0:00:34]} hxg4 {[%emt 0:04:30]} 40. Kxg4 {[%emt 0:01:48] [#]} (40. cxd5+ $1 $11 Kxd5 41. Kxg4) 40... Nd2 {[%emt 0:04:28]} (40... Kd7 $1 $17 {[%cal Rd7d8]} 41. Bb6 dxc4 42. bxc4 Nd6) 41. cxd5+ {[%emt 0:30:11] The position is equal.} cxd5 {[%emt 0:30:02]} 42. b4 {[%emt 0:00:13]} Ne4 {[%emt 0:02:50]} 43. Kf4 {[%emt 0:07:01]} Nd6 {[%emt 0:00:00] Threatens to win with ...Nf5.} 44. g4 {[%emt 0:00:00] Prevents Nf5.} Nf7 {[%emt 0:00:00]} 45. Bc7 {[%emt 0:00:00]} g5+ {[%emt 0:00:00]} 46. Kg3 $1 {[%emt 0:00:00]} gxh4+ {[%emt 0:00:00]} 47. Kxh4 {[%emt 0:00:00]} Ng5 {[%emt 0:00:00] [#] ...Nf3+ is the strong threat.} 48. Bb6 {[%emt 0:00:00]} Ne4 {[%emt 0:00:00]} 49. Kh5 {[%emt 0:00:00]} f5 {[%emt 0:00:00] Hoping for ...Nf2.} 50. g5 {[%emt 0:00:00] Strongly threatening Bc7.} f4 {[%emt 0:00:00] ( -> ...f3)} 51. Kg4 {[%emt 0:00:00]} Nxg5 {[%emt 0:00:00][%cal Of4f3] White must now prevent ...f3!} 52. Kxf4 {[%emt 0:00:00]} ({But not} 52. Kxg5 $2 f3 53. Kg4 f2 $19) 52... Ne4 {[%emt 0:00:00]} 53. Bc5 {[%emt 0:00:00]} Kd7 {[%emt 0:00:00]} 54. Ke5 {[%emt 0:00:00]} Kc6 {[%emt 0:00:00]} 55. Ke6 {[%emt 0:00:00]} Nf2 {[%emt 0:00:01]} 56. Ke5 {[%emt 0:00:00]} Nd3+ {[%emt 0:04:44] Weighted Error Value: White=0.10 (very precise) /Black=0.08 (flawless)} 1/2-1/2

[Event "Slovakian-ch Youth 2022"]
[Site "Lubovna"]
[Date "2022.05.25"]
[Round "6.8"]
[White "Tokarcik, Jan"]
[Black "Pongo, Aron"]
[Result "1-0"]
[ECO "C01"]
[WhiteElo "1313"]
[BlackElo "1566"]
[Annotator "NA RC COMBH"]
[PlyCount "71"]
[EventDate "2022.05.22"]
[EventCountry "SVK"]
[SourceTitle "playchess.com"]
[Source "ChessBase"]
[SourceQuality "1"]
[TimeControl "40/5400+30:1800+30"]

1. e4 e6 {[%emt 0:00:01]} 2. d4 d5 {[%emt 0:00:04]} 3. exd5 {[%emt 0:01:31]} exd5 {[%emt 0:00:01]} 4. c4 {[%emt 0:00:25]} Nf6 {[%emt 0:00:02]} 5. Nf3 {[%emt 0:00:44]} Nbd7 {[%emt 0:00:58]} 6. Nc3 {[%emt 0:00:55]} dxc4 {[%emt 0:08:10]} 7. Bxc4 {[%emt 0:02:06]} Nb6 {[%emt 0:01:01]} 8. Bb3 {[%emt 0:01:11]} Be7 {[%emt 0:01:01]} 9. O-O {[%emt 0:01:48]} O-O {[%emt 0:00:49]} 10. Bf4 {[%emt 0:02:57]} Bg4 {[%emt 0:00:42]} 11. h3 {[%emt 0:02:33]} Bh5 {[%emt 0:00:59]} 12. Rc1 {[%emt 0:03:55]} c6 {[%emt 0:00:39]} 13. Qd3 {[%emt 0:10:17]} Bg6 {[%emt 0:04:52]} 14. Qe3 {[%emt 0:05:29]} Re8 {[%emt 0:02:45]} 15. Ne5 {[%emt 0:13:17]} Bb4 {[%emt 0:09:53]} 16. Rfd1 {[%emt 0:14:58]} a5 {[%emt 0:16:42]} 17. a3 {[%emt 0:08:35]} Bxc3 {[%emt 0:01:24]} 18. bxc3 {[%emt 0:00:21]} a4 {[%emt 0:00:57]} 19. Ba2 {[%emt 0:01:45]} Nbd5 {[%emt 0:02:18]} 20. Bxd5 Qxd5 {[%emt 0:08:15]} 21. c4 {[%emt 0:11:15]} Qa5 {[%emt 0:05:21]} 22. Qc3 {[%emt 0:01:54]} Qa6 {[%emt 0:05:38]} 23. Nxg6 {[%emt 0:01:18]} hxg6 {[%emt 0:00:20]} 24. Re1 {[%emt 0:04:55]} Nd7 {[%emt 0:02:29]} 25. Qb4 {[%emt 0:01:32]} Nb6 {[%emt 0:02:26]} 26. Rxe8+ {[%emt 0:02:04]} Rxe8 {[%emt 0:00:02]} 27. Bc7 {[%emt 0:02:04]} Nd7 {[%emt 0:02:45]} 28. Rb1 {[%emt 0:01:48]} Nf8 {[%emt 0:02:27]} 29. c5 {[%emt 0:02:10]} Re7 {[%emt 0:02:29]} 30. Bd6 {[%emt 0:01:29]} Rd7 {[%emt 0:00:13]} 31. Qb6 {[%emt 0:00:39]} Qd3 {[%emt 0:02:31]} 32. Qb4 {[%emt 0:00:55]} Ne6 {[%emt 0:00:40]} 33. Re1 {[%emt 0:00:52]} Nxd4 {[%emt 0:02:29]} 34. Re8+ {[%emt 0:01:00]} Kh7 {[%emt 0:00:01]} 35. Qxa4 {[%emt 0:00:20]} Nb5 {[%emt 0:04:37]} 36. Qh4# 1-0

[Event "Slovakian-ch Youth 2022"]
[Site "Lubovna"]
[Date "2022.05.25"]
[Round "6.9"]
[White "Cedzo, Adam"]
[Black "Beres, Tomas"]
[Result "1/2-1/2"]
[ECO "A40"]
[WhiteElo "1869"]
[BlackElo "2059"]
[Annotator "TA"]
[PlyCount "48"]
[EventDate "2022.05.22"]
[EventCountry "SVK"]
[SourceTitle "playchess.com"]
[Source "ChessBase"]
[SourceQuality "1"]
[TimeControl "40/5400+30:1800+30"]

{[%evp 9,48,-102,-101,-103,-87,-89,-81,-93,-88,-94,24,29,42,19,34,37,34,32,56,49,95,17,31,47,41,37,54,48,69,66,51,12,20,7,14,2,4,5,31,26,19]} 1. e4 {[%emt 0:19:21]} b6 {[%emt 0:00:14]} 2. d4 {[%emt 0:01:12]} Bb7 {[%emt 0:00:07]} 3. Bd3 {[%emt 0:00:59]} e6 {[%emt 0:00:07]} 4. c4 {[%emt 0:00:43]} Nf6 {[%emt 0:03:27]} 5. Qc2 {[%emt 0:00:48] [#]} Nc6 $1 {[%emt 0:11:18]} 6. d5 {[%emt 0:01:56] A40: Unusual replies to 1 d4.} Nb4 {[%emt 0:01:12] [#]} 7. Qd1 $146 {[%emt 0:01:01]} ({Predecessor:} 7. Qe2 Nxd3+ 8. Qxd3 Bc5 9. Nf3 exd5 10. cxd5 a5 11. Bg5 h6 12. Bh4 Qe7 13. Nbd2 {0-1 (31) Riemer Nlula,M (1825)-Froehlich Dill,A (1813) Germany 2017}) 7... Bc5 {[%emt 0:17:36]} 8. Nf3 {[%emt 0:01:13] Black is better.} exd5 {[%emt 0:00:40]} 9. exd5 {[%emt 0:00:54]} Qe7+ {[%emt 0:00:20]} ({Black should try} 9... Nxd3+ $17 10. Qxd3 Qe7+ 11. Be3 Ng4) 10. Be2 $11 {[%emt 0:00:06]} a5 {[%emt 0:02:19]} 11. O-O {[%emt 0:01:41]} O-O {[%emt 0:00:23]} 12. a3 {[%emt 0:01:05]} Na6 {[%emt 0:00:11]} 13. Nc3 {[%emt 0:00:49]} Rfe8 {[%emt 0:00:33]} 14. Bd3 {[%emt 0:00:07]} h6 {[%emt 0:02:16] Inhibits Bg5.} (14... Qd6 $14) 15. Re1 {[%emt 0:01:38]} (15. Nh4 $16) 15... Qf8 {[%emt 0:00:13]} 16. Bf4 {[%emt 0:01:02]} Rxe1+ {[%emt 0:01:54]} 17. Qxe1 {[%emt 0:00:23]} Re8 {[%emt 0:02:36]} 18. Qd2 {[%emt 0:02:24]} Bd6 {[%emt 0:02:01]} 19. Bxd6 {[%emt 0:02:18] White is more active.} Qxd6 {[%emt 0:00:07]} 20. Re1 {[%emt 0:00:36]} (20. Nd4 {looks sharper.} Ng4 21. g3 Qe7 22. Bc2) 20... Rxe1+ {[%emt 0:02:20]} 21. Qxe1 {[%emt 0:00:27]} Nc5 {[%emt 0:01:36]} 22. Bc2 {[%emt 0:00:11]} c6 {[%emt 0:01:50] Against Nb5} 23. dxc6 {[%emt 0:00:32]} Bxc6 {[%emt 0:00:51]} 24. Qe5 {[%emt 0:01:14]} Qxe5 {[%emt 0:00:43] Weighted Error Value: White=0.13 (very precise) /Black=0.20 (precise)} 1/2-1/2

[Event "Slovakian-ch Youth 2022"]
[Site "Lubovna"]
[Date "2022.05.25"]
[Round "6.9"]
[White "Hasala, Richard"]
[Black "Toth, Marton"]
[Result "0-1"]
[ECO "B54"]
[WhiteElo "1318"]
[BlackElo "1849"]
[Annotator "NA RC COMBH"]
[PlyCount "56"]
[EventDate "2022.05.22"]
[EventCountry "SVK"]
[SourceTitle "playchess.com"]
[Source "ChessBase"]
[SourceQuality "1"]
[TimeControl "40/5400+30:1800+30"]

1. e4 {[%emt 0:00:02]} c5 {[%emt 0:00:04]} 2. Nf3 {[%emt 0:00:03]} d6 {[%emt 0:00:12]} 3. d4 {[%emt 0:00:12]} cxd4 {[%emt 0:00:07]} 4. Nxd4 {[%emt 0:00:04]} Nf6 {[%emt 0:00:09]} 5. f3 {[%emt 0:00:08]} g6 {[%emt 0:01:17]} 6. Nc3 {[%emt 0:03:32]} Bg7 {[%emt 0:03:27]} 7. Bb5+ {[%emt 0:05:13]} Nbd7 {[%emt 0:01:10]} 8. a4 {[%emt 0:01:46]} O-O {[%emt 0:02:15]} 9. Be3 {[%emt 0:00:35]} a6 {[%emt 0:10:23]} 10. Bc4 {[%emt 0:00:36]} Ne5 {[%emt 0:02:06]} 11. Bb3 {[%emt 0:01:21]} e6 {[%emt 0:01:23]} 12. O-O {[%emt 0:04:30]} Nc6 {[%emt 0:05:44]} 13. Qd2 {[%emt 0:04:50]} Re8 {[%emt 0:03:54]} 14. Rad1 {[%emt 0:06:49]} Nxd4 {[%emt 0:21:40]} 15. Qxd4 {[%emt 0:01:59]} Ng4 {[%emt 0:00:31]} 16. Qd2 {[%emt 0:01:12]} Nxe3 {[%emt 0:00:39]} 17. Qxe3 {[%emt 0:00:07]} Qc7 {[%emt 0:03:16]} 18. Rd3 {[%emt 0:02:51]} Bd7 {[%emt 0:02:11]} 19. Rfd1 {[%emt 0:00:47]} Bf8 {[%emt 0:00:06]} 20. Qg5 {[%emt 0:02:59]} Be7 21. Qg3 {[%emt 0:00:58]} b5 {[%emt 0:05:42]} 22. axb5 {[%emt 0:00:49]} axb5 {[%emt 0:00:14]} 23. Kh1 {[%emt 0:08:55]} b4 {[%emt 0:00:21]} 24. Ne2 {[%emt 0:00:16]} Bb5 {[%emt 0:00:14]} 25. R3d2 {[%emt 0:00:17]} Bxe2 {[%emt 0:04:25]} 26. Rxe2 {[%emt 0:00:33]} Bf6 {[%emt 0:03:01]} 27. Qxd6 {[%emt 0:00:55]} Qxd6 {[%emt 0:00:16]} 28. Rxd6 {[%emt 0:00:07]} Ra1+ {[%emt 0:00:30]} 0-1

[Event "Slovakian-ch Youth 2022"]
[Site "Lubovna"]
[Date "2022.05.25"]
[Round "6.10"]
[White "Hudak, Jan"]
[Black "Gourlay, Martin B"]
[Result "1-0"]
[ECO "B10"]
[WhiteElo "1688"]
[BlackElo "1911"]
[Annotator "TA"]
[PlyCount "39"]
[EventDate "2022.05.22"]
[EventCountry "SVK"]
[SourceTitle "playchess.com"]
[Source "ChessBase"]
[SourceQuality "1"]
[TimeControl "40/5400+30:1800+30"]

{[%evp 9,39,61,74,69,265,288,284,235,683,682,677,677,677,664,671,670,675,675,660,613,648,650,651,621,700,695,746,753,714,644,647,629]} 1. e4 {[%emt 0:00:03]} c6 {[%emt 0:00:06]} 2. Nc3 {[%emt 0:00:07]} d5 {[%emt 0:00:12]} 3. Nf3 {[%emt 0:00:17]} g6 {[%emt 0:01:34]} 4. d4 {[%emt 0:03:33]} e6 {[%emt 0:00:34]} 5. Be3 {[%emt 0:01:43]} Nd7 {[%emt 0:00:41] [#]} 6. Be2 $146 {[%emt 0:00:36] White is more active. B15: Caro-Kann: 3 Nc3: 3...g6 and 3...dxe4 4 Nxe4 Nf6 5 Nxf6+ exf6.} ({Predecessor:} 6. Bd3 a6 7. Qe2 b5 8. O-O Bb4 9. a3 Bxc3 10. bxc3 Bb7 11. Ng5 Nb6 12. Rfe1 {1-0 (39) Bernath,R (2170)-Lorincz,K (2040) Hajduszoboszlo 1999}) 6... c5 $2 {[%emt 0:00:29]} ({Better is} 6... dxe4 $14 7. Nxe4 Ngf6) 7. exd5 $18 {[%emt 0:02:07]} exd5 {[%emt 0:01:40]} 8. Nxd5 {[%emt 0:01:44] [#] Hoping for Bf4. White has a decisive advantage.} cxd4 $2 {[%emt 0:01:29]} (8... Ngf6) 9. Bxd4 {[%emt 0:01:06] White is clearly winning.} Ngf6 {[%emt 0:00:08]} 10. Nxf6+ {[%emt 0:01:26]} Nxf6 {[%emt 0:00:14]} 11. Bb5+ {[%emt 0:00:18]} Bd7 {[%emt 0:02:10]} 12. Bxf6 {[%emt 0:09:44]} Qa5+ {[%emt 0:00:13]} 13. Qd2 {[%emt 0:04:10]} Qxd2+ {[%emt 0:02:07]} 14. Nxd2 {[%emt 0:00:55] [#] And now Bxd7+ would win.} Rg8 {[%emt 0:00:19]} 15. Bxd7+ {[%emt 0:00:11]} Kxd7 {[%emt 0:00:12]} 16. O-O-O {[%emt 0:00:11]} Bh6 {[%emt 0:00:22]} 17. Kb1 {[%emt 0:00:14]} Kc7 {[%emt 0:01:09]} 18. Nc4 {[%emt 0:00:21]} Bg7 19. Bxg7 Rxg7 {[%emt 0:01:37]} 20. Rhe1 {[%emt 0:00:38] White took control after the opening.  Weighted Error Value: White=0.15 (very precise) /Black=1.14} 1-0

[Event "Slovakian-ch Youth 2022"]
[Site "Lubovna"]
[Date "2022.05.25"]
[Round "6.10"]
[White "Sokolovsky, Jakub"]
[Black "Kostelansky, Karol"]
[Result "1/2-1/2"]
[ECO "B12"]
[WhiteElo "1613"]
[BlackElo "1821"]
[Annotator "NA COMBH"]
[PlyCount "36"]
[EventDate "2022.05.22"]
[EventCountry "SVK"]
[SourceTitle "playchess.com"]
[Source "ChessBase"]
[SourceQuality "1"]
[TimeControl "40/5400+30:1800+30"]

1. e4 {[%emt 0:02:27]} c6 {[%emt 0:00:08]} 2. d4 {[%emt 0:00:07]} d5 {[%emt 0:00:07]} 3. e5 {[%emt 0:00:29]} Bf5 {[%emt 0:00:28]} 4. h4 {[%emt 0:00:53]} h5 {[%emt 0:00:36]} 5. Nf3 {[%emt 0:00:54]} e6 {[%emt 0:01:57]} 6. Bd3 {[%emt 0:01:05]} Bxd3 {[%emt 0:00:49]} 7. Qxd3 {[%emt 0:00:02]} Qa5+ {[%emt 0:00:53]} 8. c3 {[%emt 0:06:52]} Qa6 {[%emt 0:03:30]} 9. Qxa6 {[%emt 0:05:20]} Nxa6 {[%emt 0:00:11]} 10. O-O {[%emt 0:03:23]} Ne7 {[%emt 0:02:59]} 11. Bg5 {[%emt 0:03:05]} Nf5 {[%emt 0:04:23]} 12. b4 {[%emt 0:03:13]} Be7 {[%emt 0:13:52]} 13. Nbd2 {[%emt 0:08:49]} Bxg5 {[%emt 0:10:42]} 14. hxg5 {[%emt 0:00:02]} O-O {[%emt 0:01:14]} 15. a4 {[%emt 0:02:00]} Rfc8 {[%emt 0:05:02]} 16. Nb3 {[%emt 0:03:58]} g6 {[%emt 0:08:54]} 17. Ra3 {[%emt 0:06:29]} b6 {[%emt 0:10:17]} 18. Rfa1 {[%emt 0:04:47]} Nc7 {[%emt 0:06:17]} 1/2-1/2

[Event "Slovakian-ch Youth 2022"]
[Site "Lubovna"]
[Date "2022.05.25"]
[Round "6.11"]
[White "Kuna, Patrik"]
[Black "Kostura, Daniel"]
[Result "1-0"]
[ECO "A00"]
[WhiteElo "1811"]
[BlackElo "1510"]
[Annotator "NA COMBH"]
[PlyCount "31"]
[EventDate "2022.05.22"]
[EventCountry "SVK"]
[SourceTitle "playchess.com"]
[Source "ChessBase"]
[SourceQuality "1"]
[TimeControl "40/5400+30:1800+30"]

1. b4 {[%emt 0:02:05]} Nf6 {[%emt 0:00:06]} 2. Bb2 {[%emt 0:00:09]} e6 {[%emt 0:00:28]} 3. a3 {[%emt 0:10:05]} b6 {[%emt 0:00:02]} 4. Nf3 {[%emt 0:00:50]} Bb7 {[%emt 0:00:13]} 5. e3 {[%emt 0:04:59]} Be7 {[%emt 0:03:15]} 6. Be2 {[%emt 0:06:09]} O-O {[%emt 0:00:32]} 7. O-O {[%emt 0:00:19]} Nd5 {[%emt 0:00:30]} 8. c4 {[%emt 0:00:38]} Bf6 {[%emt 0:00:30]} 9. d4 {[%emt 0:05:13]} Ne7 {[%emt 0:00:19]} 10. Nbd2 {[%emt 0:01:33]} d6 {[%emt 0:05:07]} 11. Qb3 {[%emt 0:03:32]} Nd7 {[%emt 0:03:31]} 12. Rfd1 {[%emt 0:10:57]} c5 {[%emt 0:08:48]} 13. Nf1 {[%emt 0:19:28]} Qc7 {[%emt 0:04:45]} 14. Ng3 {[%emt 0:01:44]} g6 {[%emt 0:06:35]} 15. dxc5 {[%emt 0:00:44]} Bxb2 {[%emt 0:00:40]} 16. cxd6 {[%emt 0:00:40]} 1-0

[Event "Slovakian-ch Youth 2022"]
[Site "Lubovna"]
[Date "2022.05.25"]
[Round "6.11"]
[White "Cerven, Samuel"]
[Black "Carnecky, Viliam"]
[Result "1-0"]
[ECO "B18"]
[WhiteElo "1353"]
[BlackElo "1380"]
[Annotator "NA RC COMBH"]
[PlyCount "115"]
[EventDate "2022.05.22"]
[EventCountry "SVK"]
[SourceTitle "playchess.com"]
[Source "ChessBase"]
[SourceQuality "1"]
[TimeControl "40/5400+30:1800+30"]

1. e4 {[%emt 0:02:33]} c6 {[%emt 0:00:10]} 2. d4 {[%emt 0:01:14]} d5 {[%emt 0:00:25]} 3. Nc3 {[%emt 0:00:40]} dxe4 {[%emt 0:00:22]} 4. Nxe4 {[%emt 0:00:25]} Bf5 {[%emt 0:00:21]} 5. Ng3 {[%emt 0:00:37]} Bg6 {[%emt 0:00:26]} 6. Nh3 {[%emt 0:01:08]} h6 {[%emt 0:02:59]} 7. Nf4 {[%emt 0:00:32]} Bh7 {[%emt 0:00:39]} 8. Bc4 {[%emt 0:00:21]} e6 {[%emt 0:00:52]} 9. O-O {[%emt 0:00:21]} Nf6 {[%emt 0:01:05]} 10. Re1 {[%emt 0:03:33]} Be7 {[%emt 0:01:45]} 11. Bxe6 {[%emt 0:03:00]} O-O {[%emt 0:14:38]} 12. Bb3 {[%emt 0:03:03]} Nbd7 {[%emt 0:03:23]} 13. Bd2 {[%emt 0:23:09]} Nb6 {[%emt 0:03:34]} 14. c3 {[%emt 0:04:06]} Re8 {[%emt 0:01:54]} 15. Qf3 {[%emt 0:04:55]} Rb8 {[%emt 0:19:41]} 16. Rad1 {[%emt 0:04:56]} c5 {[%emt 0:01:48]} 17. dxc5 {[%emt 0:01:18]} Bxc5 {[%emt 0:00:17]} 18. Be3 {[%emt 0:00:33]} Qc7 {[%emt 0:01:27]} 19. Bxc5 {[%emt 0:00:33]} Rxe1+ {[%emt 0:00:57]} 20. Rxe1 {[%emt 0:00:17]} Qxc5 {[%emt 0:00:58]} 21. Nfh5 {[%emt 0:02:40]} Nbd7 {[%emt 0:03:58]} 22. h3 {[%emt 0:08:19]} Bg6 {[%emt 0:01:53]} 23. Nxf6+ {[%emt 0:01:01]} Nxf6 {[%emt 0:00:14]} 24. Qe3 {[%emt 0:04:07]} Qa5 {[%emt 0:02:37]} 25. Qf4 {[%emt 0:03:06]} Rd8 {[%emt 0:04:40]} 26. Re5 {[%emt 0:04:23]} Qc7 {[%emt 0:02:14]} 27. Qe3 {[%emt 0:01:11]} b6 {[%emt 0:04:38]} 28. Nf5 {[%emt 0:06:16]} Bxf5 {[%emt 0:06:04]} 29. Rxf5 {[%emt 0:00:15]} Re8 {[%emt 0:00:34]} 30. Qc1 {[%emt 0:00:51]} Re2 {[%emt 0:02:49]} 31. Rf3 {[%emt 0:01:49]} Qe5 {[%emt 0:05:56]} 32. Re3 {[%emt 0:00:26]} Rxe3 {[%emt 0:00:04]} 33. Qxe3 {[%emt 0:00:13]} Qxe3 {[%emt 0:00:07]} 34. fxe3 {[%emt 0:00:12]} Ne4 {[%emt 0:01:30]} 35. Kf1 {[%emt 0:01:11]} Nd2+ {[%emt 0:00:54]} 36. Ke2 {[%emt 0:01:25]} Nxb3 {[%emt 0:01:03]} 37. axb3 {[%emt 0:00:10]} Kf8 {[%emt 0:00:10]} 38. Kd3 {[%emt 0:00:08]} Ke7 {[%emt 0:00:06]} 39. c4 {[%emt 0:00:18]} Kd6 {[%emt 0:00:38]} 40. Kd4 {[%emt 0:01:10]} f6 {[%emt 0:00:35]} 41. g4 {[%emt 0:30:42]} g6 {[%emt 0:31:06]} 42. b4 {[%emt 0:00:05]} Kc6 {[%emt 0:02:29]} 43. b5+ {[%emt 0:01:15]} Kd6 {[%emt 0:00:39]} 44. b4 {[%emt 0:00:23]} Ke6 {[%emt 0:00:41]} 45. Ke4 {[%emt 0:01:28]} Kd6 {[%emt 0:00:19]} 46. Kd4 {[%emt 0:01:26]} Ke6 {[%emt 0:00:25]} 47. c5 {[%emt 0:00:15]} f5 {[%emt 0:00:51]} 48. c6 {[%emt 0:00:27]} fxg4 {[%emt 0:00:25]} 49. hxg4 {[%emt 0:00:11]} Kd6 {[%emt 0:00:30]} 50. Ke4 {[%emt 0:00:35]} Ke6 {[%emt 0:00:26]} 51. Kf4 {[%emt 0:00:26]} Kd6 {[%emt 0:00:48]} 52. e4 {[%emt 0:01:02]} Ke6 {[%emt 0:00:59]} 53. e5 {[%emt 0:00:28]} Ke7 {[%emt 0:00:15]} 54. Ke3 {[%emt 0:00:31]} Ke6 {[%emt 0:00:29]} 55. Ke4 {[%emt 0:00:09]} Ke7 {[%emt 0:00:13]} 56. Kd5 {[%emt 0:00:34]} h5 {[%emt 0:02:12]} 57. gxh5 {[%emt 0:00:15]} gxh5 {[%emt 0:00:07]} 58. Ke4 {[%emt 0:00:04]} 1-0

[Event "Slovakian-ch Youth 2022"]
[Site "Lubovna"]
[Date "2022.05.25"]
[Round "6.12"]
[White "Vida, Gergo"]
[Black "Kluska, Lukas"]
[Result "1-0"]
[ECO "C50"]
[WhiteElo "1821"]
[BlackElo "1215"]
[Annotator "NA RC COMBH"]
[PlyCount "69"]
[EventDate "2022.05.22"]
[EventCountry "SVK"]
[SourceTitle "playchess.com"]
[Source "ChessBase"]
[SourceQuality "1"]
[TimeControl "40/5400+30:1800+30"]

1. e4 {[%emt 0:03:49]} e5 {[%emt 0:01:01]} 2. Nf3 {[%emt 0:00:18]} Nc6 {[%emt 0:01:25]} 3. Bc4 {[%emt 0:00:13]} Be7 {[%emt 0:00:52]} 4. c3 {[%emt 0:00:09]} Nf6 {[%emt 0:00:51]} 5. d3 {[%emt 0:00:14]} d6 {[%emt 0:01:21]} 6. Nbd2 {[%emt 0:01:51]} O-O {[%emt 0:00:59]} 7. b4 {[%emt 0:00:13]} d5 {[%emt 0:03:49]} 8. Bb3 dxe4 {[%emt 0:01:37]} 9. dxe4 {[%emt 0:01:01]} Qd3 {[%emt 0:06:08]} 10. Bb2 {[%emt 0:04:58]} Nxe4 {[%emt 0:02:52]} 11. Bc4 {[%emt 0:02:42]} Nxc3 {[%emt 0:03:19]} 12. Bxd3 {[%emt 0:00:41]} Nxd1 {[%emt 0:00:06]} 13. Rxd1 {[%emt 0:00:42]} Nxb4 {[%emt 0:01:25]} 14. Bb1 {[%emt 0:00:27]} Be6 {[%emt 0:00:45]} 15. a3 {[%emt 0:02:19]} Nc6 {[%emt 0:00:52]} 16. O-O {[%emt 0:00:38]} a5 {[%emt 0:01:16]} 17. Be4 {[%emt 0:00:35]} Bd7 {[%emt 0:00:49]} 18. Nc4 {[%emt 0:03:52]} Be6 {[%emt 0:01:36]} 19. Ncxe5 {[%emt 0:01:47]} Nxe5 {[%emt 0:00:20]} 20. Nxe5 {[%emt 0:00:11]} Bf6 {[%emt 0:00:12]} 21. Rd2 {[%emt 0:00:44]} Rfd8 {[%emt 0:00:31]} 22. Rfd1 {[%emt 0:00:48]} c6 {[%emt 0:00:30]} 23. Rxd8+ {[%emt 0:01:18]} Rxd8 {[%emt 0:00:09]} 24. Rxd8+ {[%emt 0:00:21]} Bxd8 {[%emt 0:00:06]} 25. Nd3 {[%emt 0:00:59]} f5 {[%emt 0:00:21]} 26. Bf3 {[%emt 0:00:19]} g5 {[%emt 0:00:44]} 27. g3 {[%emt 0:00:33]} Kf7 {[%emt 0:00:20]} 28. Nc5 Bc8 {[%emt 0:00:31]} 29. Kf1 {[%emt 0:03:10]} Be7 30. Nb3 {[%emt 0:05:18]} a4 {[%emt 0:01:07]} 31. Na5 {[%emt 0:01:03]} b6 {[%emt 0:00:17]} 32. Nxc6 {[%emt 0:01:01]} Bb7 {[%emt 0:00:51]} 33. Nxe7 {[%emt 0:00:33]} Bxf3 {[%emt 0:00:03]} 34. Nxf5 {[%emt 0:00:33]} Bg4 {[%emt 0:00:25]} 35. Nh6+ {[%emt 0:00:25]} 1-0